fUSD/lending_fUSD_20260625
["ID","MTS","AMOUNT","RATE_DAILY","PERIOD"]
[426426022,1782375107000,185.86,0.00029931,30]
[426426025,1782375108000,185.86,0.00030981,30]
[426426026,1782375109000,185.93,0.00031506,30]
[426426028,1782375177000,189.81,0.00029931,30]
[426426032,1782375252000,191.38,0.00029931,30]
[426426033,1782375313000,10000.0,0.00031507,30]
[426426035,1782375320000,10000.0,0.00031507,30]
[426426036,1782375332000,8976.0,0.00031507,30]
[426426086,1782375747000,170.64,0.00029931,30]
[426426091,1782375815000,179.77,0.00029931,30]
[426426093,1782375882000,151.84,0.00029931,30]
[426426094,1782375883000,151.84,0.00030876,30]
[426426099,1782375931000,165.04,0.00029931,30]
[426426101,1782375946000,170.13,0.00029931,30]
[426426104,1782376014000,164.03,0.00029931,30]
[426426114,1782376057000,159.97,0.00029931,30]
[426426115,1782376130000,162.5,0.00029931,30]
[426426120,1782376196000,166.32,0.00029931,30]
[426426140,1782376232000,-166.66,0.00013549,2]
[426426131,1782376232000,-166.66,0.00012497,2]
[426426133,1782376232000,-166.66,0.0001276,2]
[426426132,1782376232000,-168.555956,0.00012556,2]
[426426134,1782376232000,-541.67,0.00012851,2]
[426426136,1782376232000,-166.66,0.00013023,2]
[426426139,1782376232000,-166.66,0.00013286,2]
[426426141,1782376232000,-200.0,0.00013699,2]
[426426142,1782376232000,-260.70317959,0.0001371,2]
[426426135,1782376232000,-253.71,0.00012926,2]
[426426138,1782376232000,-170.53,0.00013228,2]
[426426143,1782376232000,-140.4524828,0.00013745,2]
[426426137,1782376232000,-302.29,0.00013122,2]
[426426156,1782376234000,303.79,0.00011928,2]
[426426171,1782376238000,-500.0,0.00013797,2]
[426426175,1782376238000,-308.87478101,0.00013798,2]
[426426177,1782376238000,-233.34260901,0.00013798,2]
[426426176,1782376238000,-500.0,0.00013798,2]
[426426178,1782376238000,-596.63068019,0.00013798,2]
[426426188,1782376238000,-151.0,0.000138,2]
[426426173,1782376238000,-438.03077927,0.00013797,2]
[426426180,1782376238000,-608.89949852,0.00013798,2]
[426426172,1782376238000,-500.0,0.00013797,2]
[426426174,1782376238000,-500.0,0.00013798,2]
[426426168,1782376238000,-300.0,0.00013746,2]
[426426186,1782376238000,-309.0,0.000138,2]
[426426163,1782376238000,-600.0,0.00013746,2]
[426426167,1782376238000,-300.0,0.00013746,2]
[426426164,1782376238000,-600.0,0.00013746,2]
[426426161,1782376238000,-600.0,0.00013746,2]
[426426169,1782376238000,-300.0,0.00013746,2]
[426426166,1782376238000,-300.0,0.00013746,2]
[426426162,1782376238000,-600.0,0.00013746,2]
[426426159,1782376238000,-303.79,0.00013184,2]
[426426170,1782376238000,-300.0,0.00013746,2]
[426426160,1782376238000,-9.5475172,0.00013745,2]
[426426158,1782376238000,-303.79,0.00012556,2]
[426426165,1782376238000,-600.0,0.00013746,2]
[426426184,1782376238000,-490575.3333,0.00013799,2]
[426426229,1782376238000,-500.0,0.00013899,2]
[426426201,1782376238000,-320.0,0.000138,2]
[426426231,1782376238000,-500.0,0.00013899,2]
[426426182,1782376238000,-500.0,0.00013798,2]
[426426233,1782376238000,-500.0,0.00013899,2]
[426426239,1782376238000,-316.0,0.00013899,2]
[426426237,1782376238000,-316.0,0.00013899,2]
[426426235,1782376238000,-150.0,0.00013899,2]
[426426223,1782376238000,-500.0,0.00013899,2]
[426426217,1782376238000,-166.66,0.00013812,2]
[426426215,1782376238000,-937.89642366,0.00013811,2]
[426426221,1782376238000,-158.95132203,0.00013831,2]
[426426219,1782376238000,-2503.68850317,0.00013813,2]
[426426225,1782376238000,-500.0,0.00013899,2]
[426426228,1782376238000,-500.0,0.00013899,2]
[426426193,1782376238000,-151.0,0.000138,2]
[426426195,1782376238000,-320.0,0.000138,2]
[426426198,1782376238000,-321.0,0.000138,2]
[426426191,1782376238000,-317.0,0.000138,2]
[426426211,1782376238000,-2500.0,0.000138,2]
[426426209,1782376238000,-176.7329,0.000138,2]
[426426203,1782376238000,-310.0,0.000138,2]
[426426213,1782376238000,-1500000.0,0.000138,2]
[426426189,1782376238000,-316.0,0.000138,2]
[426426205,1782376238000,-321.0,0.000138,2]
[426426207,1782376238000,-2000.0,0.000138,2]
[426426199,1782376238000,-151.0,0.000138,2]
[426426284,1782376239000,-2503.68850316,0.00014745,2]
[426426280,1782376239000,-160.71109248,0.00014658,2]
[426426286,1782376239000,-3962.38373678,0.00014766,2]
[426426278,1782376239000,-2503.68850316,0.00014589,2]
[426426282,1782376239000,-937.8964236,0.00014658,2]
[426426276,1782376239000,-253.71,0.00014542,2]
[426426295,1782376239000,-189.75483852,0.000148,2]
[426426291,1782376239000,-160.71109248,0.00014779,2]
[426426293,1782376239000,-937.8964236,0.00014779,2]
[426426297,1782376239000,-189.75483851,0.0001485,2]
[426426307,1782376239000,-500.0,0.0001486,2]
[426426299,1782376239000,-5800.0,0.00014858,2]
[426426272,1782376239000,-160.71109248,0.00014537,2]
[426426288,1782376239000,-163.87454717,0.00014766,2]
[426426274,1782376239000,-937.8964236,0.00014537,2]
[426426251,1782376239000,-937.8964236,0.00013932,2]
[426426268,1782376239000,-937.8964236,0.00014416,2]
[426426313,1782376239000,-500.0,0.0001486,2]
[426426241,1782376239000,-150.0,0.00013899,2]
[426426245,1782376239000,-314.0,0.000139,2]
[426426243,1782376239000,-320.0,0.00013899,2]
[426426247,1782376239000,-216.45114417,0.00013916,2]
[426426249,1782376239000,-160.0,0.00013916,2]
[426426270,1782376239000,-2503.68850316,0.00014434,2]
[426426253,1782376239000,-2503.68850316,0.00013968,2]
[426426259,1782376239000,-2503.68850316,0.00014124,2]
[426426264,1782376239000,-937.8964236,0.00014295,2]
[426426255,1782376239000,-250.0,0.00014,2]
[426426260,1782376239000,-937.8964236,0.00014174,2]
[426426262,1782376239000,-2503.68850316,0.00014279,2]
[426426266,1782376239000,-500.37999969,0.00014329,2]
[426426256,1782376239000,-937.8964236,0.00014053,2]
[426426311,1782376239000,-500.0,0.0001486,2]
[426426328,1782376239000,-5800.0,0.00014891,2]
[426426301,1782376239000,-255.0,0.00014859,2]
[426426352,1782376239000,-483.67122643,0.0001498,2]
[426426361,1782376239000,-300.0,0.00014999,2]
[426426362,1782376239000,-666.0,0.00014999,2]
[426426356,1782376239000,-300.0,0.00014999,2]
[426426360,1782376239000,-701.79231786,0.00014999,2]
[426426351,1782376239000,-189.75483851,0.000149,2]
[426426365,1782376239000,-8242879.11401404,0.00015,2]
[426426359,1782376239000,-300.0,0.00014999,2]
[426426363,1782376239000,-1461664.15699741,0.00015,2]
[426426364,1782376239000,-610.38,0.00015,2]
[426426347,1782376239000,-937.8964236,0.000149,2]
[426426358,1782376239000,-300.0,0.00014999,2]
[426426349,1782376239000,-2503.68850316,0.000149,2]
[426426354,1782376239000,-500.0,0.00014985,2]
[426426343,1782376239000,-25000.0,0.000149,3]
[426426303,1782376239000,-500.0,0.0001486,2]
[426426341,1782376239000,-5800.0,0.000149,2]
[426426345,1782376239000,-160.71109248,0.000149,2]
[426426309,1782376239000,-500.0,0.0001486,2]
[426426314,1782376239000,-500.0,0.0001486,2]
[426426305,1782376239000,-500.0,0.0001486,2]
[426426319,1782376239000,-23598.316681,0.00014861,2]
[426426316,1782376239000,-299234.68977,0.00014861,2]
[426426322,1782376239000,-5800.0,0.00014866,2]
[426426321,1782376239000,-1358861.2393581,0.00014861,2]
[426426331,1782376239000,-500.0,0.00014899,2]
[426426332,1782376239000,-500.0,0.00014899,2]
[426426335,1782376239000,-500.0,0.00014899,2]
[426426339,1782376239000,-24261.7042,0.000149,2]
[426426336,1782376239000,-589.73392773,0.00014899,2]
[426426326,1782376239000,-5800.0,0.00014883,2]
[426426325,1782376239000,-5800.0,0.00014874,2]
[426426377,1782376243000,-1303.51078379,0.00015,2]
[426426369,1782376243000,-316.06336268,0.0001379,2]
[426426374,1782376243000,-395.92375437,0.00014851,2]
[426426370,1782376243000,-79.86039169,0.0001379,2]
[426426373,1782376243000,-3962.38373677,0.00014833,2]
[426426371,1782376243000,-1226.80492835,0.000138,2]
[426426376,1782376243000,-395.92375437,0.0001499,2]
[426426372,1782376243000,-773.19507165,0.000138,2]
[426426375,1782376243000,-163.87454717,0.000149,2]
[426426378,1782376243000,-318.46,0.00015,2]
[426426382,1782376246000,-1858.67091392,0.000149,2]
[426426387,1782376246000,-1260.91335969,0.00015,2]
[426426390,1782376246000,-385.90158117,0.00015,2]
[426426388,1782376246000,-320.88383104,0.00015,2]
[426426389,1782376246000,-532.32832048,0.00015,2]
[426426386,1782376246000,-2103.71282285,0.000149,2]
[426426391,1782376271000,159.97,0.00029931,30]
[426426392,1782376272000,189.24,0.00029931,30]
[426426393,1782376278000,182.58,0.00029931,30]
[426427309,1782376303000,165.3,0.00030561,30]
[426427311,1782376330000,283.86,0.00029931,30]
[426427310,1782376330000,166.32,0.00029931,30]
[426427312,1782376331000,155.36,0.00029931,30]
[426427313,1782376332000,155.36,0.00030718,30]
[426427326,1782376398000,189.24,0.00029931,30]
[426427327,1782376407000,165.05,0.00029931,30]
[426427330,1782376448000,236.25,0.00031506,30]
[426427331,1782376448000,236.25,0.00031506,30]
[426427333,1782376449000,236.25,0.00031506,30]
[426427332,1782376449000,236.25,0.00031506,30]
[426427334,1782376475000,189.24,0.00029931,30]
[426427335,1782376485000,165.04,0.00029931,30]
[426427336,1782376553000,155.36,0.00029931,30]
[426427337,1782376562000,155.36,0.00029931,30]
[426427339,1782376636000,160.2,0.00029931,30]
[426427340,1782376706000,165.04,0.00029931,30]
[426427341,1782376767000,226.8983606,0.00031506,30]
[426427342,1782376777000,160.21,0.00029931,30]
[426427344,1782376879000,251.49182409,0.000295,30]
[426427355,1782377291000,-166.66,0.00012517,2]
[426427356,1782377291000,-166.66,0.0001278,2]
[426427397,1782377432000,-4202.61862251,0.00013599,2]
[426427396,1782377432000,-271.23570014,0.00013596,2]
[426427394,1782377432000,-166.66,0.00013307,2]
[426427388,1782377432000,-152.0,0.00013107,2]
[426427391,1782377432000,-263.06247903,0.00013243,2]
[426427384,1782377432000,-151.0,0.00013107,2]
[426427385,1782377432000,-151.0,0.00013107,2]
[426427390,1782377432000,-311.0,0.00013243,2]
[426427386,1782377432000,-150.0,0.00013107,2]
[426427389,1782377432000,-278.73,0.00013223,2]
[426427392,1782377432000,-47.93752097,0.00013243,2]
[426427398,1782377432000,-371.84078228,0.00013599,2]
[426427387,1782377432000,-151.0,0.00013107,2]
[426427375,1782377432000,-150.0,0.00013107,2]
[426427368,1782377432000,-166.66,0.00013044,2]
[426427372,1782377432000,-151.0,0.00013107,2]
[426427376,1782377432000,-153.0,0.00013107,2]
[426427370,1782377432000,-150.0,0.00013107,2]
[426427373,1782377432000,-151.0,0.00013107,2]
[426427382,1782377432000,-152.0,0.00013107,2]
[426427379,1782377432000,-151.0,0.00013107,2]
[426427381,1782377432000,-151.0,0.00013107,2]
[426427377,1782377432000,-151.0,0.00013107,2]
[426427380,1782377432000,-151.0,0.00013107,2]
[426427378,1782377432000,-152.0,0.00013107,2]
[426427383,1782377432000,-152.0,0.00013107,2]
[426427399,1782377432000,-309.97119118,0.00013599,2]
[426427393,1782377432000,-167.78,0.00013247,2]
[426427400,1782377432000,-500.0,0.00013599,2]
[426427424,1782377432000,-500.0,0.00013599,2]
[426427426,1782377432000,-466.74,0.00013699,2]
[426427425,1782377432000,-233.26,0.00013599,2]
[426427423,1782377432000,-182699.38344639,0.00013699,2]
[426427422,1782377432000,-500.0,0.00013599,2]
[426427420,1782377432000,-14912.36171247,0.00013699,2]
[426427416,1782377432000,-500.0,0.00013599,2]
[426427395,1782377432000,-166.66,0.00013571,2]
[426427419,1782377432000,-200.0,0.00013699,2]
[426427421,1782377432000,-500.0,0.00013599,2]
[426427417,1782377432000,-279.87527597,0.00013698,2]
[426427411,1782377432000,-474.62535135,0.00013698,2]
[426427413,1782377432000,-426.22964897,0.00013698,2]
[426427418,1782377432000,-500.0,0.00013698,2]
[426427412,1782377432000,-163.33982631,0.00013698,2]
[426427407,1782377432000,-1100.0,0.000136,4]
[426427401,1782377432000,-373.94428555,0.00013599,2]
[426427402,1782377432000,-500.0,0.00013599,2]
[426427405,1782377432000,-500.0,0.00013599,2]
[426427404,1782377432000,-500.0,0.00013599,2]
[426427403,1782377432000,-500.0,0.00013599,2]
[426427408,1782377432000,-152.22,0.00013602,2]
[426427410,1782377432000,-216.21234671,0.00013698,2]
[426427415,1782377432000,-220.12472403,0.00013698,2]
[426427414,1782377432000,-500.0,0.00013698,2]
[426427406,1782377432000,-500.0,0.00013599,2]
[426427409,1782377432000,-150.0,0.00013697,2]
[426427434,1782377438000,-500.0,0.00013599,2]
[426427428,1782377438000,-500.0,0.00013599,2]
[426427429,1782377438000,-500.0,0.00013599,2]
[426427430,1782377438000,-480.73576682,0.00013599,2]
[426427433,1782377438000,-500.0,0.00013599,2]
[426427436,1782377438000,-371.76423313,0.00013599,2]
[426427431,1782377438000,-19.26423318,0.00013599,2]
[426427435,1782377438000,-128.23576687,0.00013599,2]
[426427437,1782377438000,-500.0,0.00013599,2]
[426427438,1782377438000,-452.5845102,0.00013599,2]
[426427432,1782377438000,-500.0,0.00013599,2]
[426427439,1782377440000,-47.4154898,0.00013599,2]
[426427440,1782377440000,-500.0,0.00013599,2]
[426427441,1782377440000,-500.0,0.00013599,2]
[426427442,1782377440000,-2060.02255907,0.00013699,2]
[426427443,1782377440000,-421.08083244,0.00013699,2]
[426427479,1782377443000,-1203.35736166,0.00013699,2]
[426427478,1782377443000,-1860.0,0.00013699,2]
[426427531,1782377447000,-1854.0,0.00013699,2]
[426427530,1782377447000,-2409.8482,0.00013699,2]
[426427529,1782377447000,-2162.34485486,0.00013699,2]
[426427577,1782377459000,151.0,0.00012665,2]
[426427578,1782377462000,151.0,0.00012665,2]
[426427579,1782377465000,151.0,0.00012665,2]
[426427581,1782377469000,166.0,0.0003139,30]
[426427580,1782377469000,151.0,0.00012665,2]
[426427582,1782377538000,388.09,0.00012919,2]
[426427583,1782377577000,2638.0,0.00031,120]
[426427589,1782377743000,11850.16602489,0.00031506,30]
[426427590,1782377744000,3793.69370563,0.0002888,60]
[426427591,1782377761000,205.0,9.8e-05,2]
[426427592,1782377788000,547.55312857,0.00012738,2]
[426427593,1782377836000,1958.77691052,0.0001,2]
[426427595,1782377850000,2774.06855829,0.0001,2]
[426427600,1782377866000,1787.4921112,9.04e-05,2]
[426427601,1782377927000,167.76,0.00012743,2]
[426427602,1782377930000,166.66,0.00011751,2]
[426427607,1782377931000,166.66,0.00012988,2]
[426427606,1782377931000,166.66,0.00012741,2]
[426427605,1782377931000,166.66,0.00012493,2]
[426427604,1782377931000,166.66,0.00012246,2]
[426427603,1782377931000,166.66,0.00011999,2]
[426427611,1782378144000,1700.02167526,0.0003,120]
[426427612,1782378194000,206.50669142,0.00012955,2]
[426427614,1782378395000,10052.0,0.00012478,30]
[426427615,1782378405000,-331.89,0.00011307,2]
[426427616,1782378405000,-89.50882563,0.00011902,2]
[426427617,1782378425000,763.77577238,0.000312,30]
[426427666,1782378557000,-500.0,0.00011816,2]
[426427660,1782378557000,-354.17,0.00010742,2]
[426427661,1782378557000,-150.0,0.00010907,2]
[426427664,1782378557000,-331.89,0.00011279,2]
[426427662,1782378557000,-150.0,0.00011015,2]
[426427663,1782378557000,-250.0,0.00011132,2]
[426427665,1782378557000,-250.0,0.00011816,2]
[426427675,1782378557000,-368.39666163,0.000126,4]
[426427668,1782378557000,-110.49117437,0.00011902,2]
[426427669,1782378557000,-331.89,0.00011902,2]
[426427671,1782378557000,-200.0,0.00011903,2]
[426427670,1782378557000,-150.0,0.00011903,2]
[426427672,1782378557000,-200.0,0.00011903,2]
[426427673,1782378557000,-577.23,0.00012044,2]
[426427674,1782378557000,-178.82,0.00012352,2]
[426427667,1782378557000,-354.17,0.00011872,2]
[426427746,1782378631000,-500.0,0.00012726,2]
[426427751,1782378631000,-4.54272309,0.00012726,2]
[426427749,1782378631000,-500.0,0.00012726,2]
[426427745,1782378631000,-500.0,0.00012726,2]
[426427752,1782378631000,-556.24257173,0.00012726,2]
[426427764,1782378631000,-500.0,0.00012726,2]
[426427766,1782378631000,-500.0,0.00012726,2]
[426427747,1782378631000,-298.17803236,0.00012726,2]
[426427744,1782378631000,-500.0,0.00012726,2]
[426427780,1782378631000,-500.0,0.00012726,2]
[426427742,1782378631000,-339.25439505,0.000127,4]
[426427743,1782378631000,-300.0,0.00012725,2]
[426427741,1782378631000,-2160.74560495,0.000127,4]
[426427740,1782378631000,-207.97439505,0.000126,4]
[426427739,1782378631000,-623.62894332,0.000126,4]
[426427738,1782378631000,-529.85982878,0.00012265,2]
[426427737,1782378631000,-243.92,0.0001219,2]
[426427767,1782378631000,-500.0,0.00012726,2]
[426427750,1782378631000,-500.0,0.00012726,2]
[426427757,1782378631000,-500.0,0.00012726,2]
[426427795,1782378631000,-5000.0,0.000129,4]
[426427758,1782378631000,-500.0,0.00012726,2]
[426427800,1782378631000,-150.0,0.00012955,2]
[426427799,1782378631000,-150.0,0.00012955,2]
[426427797,1782378631000,-150.0,0.00012953,2]
[426427793,1782378631000,-3700.0,0.000128,4]
[426427753,1782378631000,-500.0,0.00012726,2]
[426427785,1782378631000,-500.0,0.00012726,2]
[426427771,1782378631000,-500.0,0.00012726,2]
[426427774,1782378631000,-500.0,0.00012726,2]
[426427789,1782378631000,-966.33,0.00012757,2]
[426427769,1782378631000,-500.0,0.00012726,2]
[426427787,1782378631000,-449.61490292,0.00012726,2]
[426427782,1782378631000,-500.0,0.00012726,2]
[426427778,1782378631000,-500.0,0.00012726,2]
[426427776,1782378631000,-500.0,0.00012726,2]
[426427755,1782378631000,-500.0,0.00012726,2]
[426427759,1782378631000,-500.0,0.00012726,2]
[426427760,1782378631000,-500.0,0.00012726,2]
[426427761,1782378631000,-500.0,0.00012726,2]
[426427791,1782378631000,-1703.89,0.00012757,2]
[426427829,1782378632000,-152.0,0.00012955,2]
[426427816,1782378632000,-500.0,0.00012955,2]
[426427813,1782378632000,-500.0,0.00012955,2]
[426427815,1782378632000,-500.0,0.00012955,2]
[426427817,1782378632000,-500.0,0.00012955,2]
[426427828,1782378632000,-152.0,0.00012955,2]
[426427831,1782378632000,-152.0,0.00012955,2]
[426427832,1782378632000,-152.0,0.00012955,2]
[426427827,1782378632000,-202.14719862,0.00012955,2]
[426427818,1782378632000,-500.0,0.00012955,2]
[426427821,1782378632000,-500.0,0.00012955,2]
[426427819,1782378632000,-190.01435782,0.00012955,2]
[426427812,1782378632000,-500.0,0.00012955,2]
[426427811,1782378632000,-507.91418824,0.00012955,2]
[426427809,1782378632000,-500.0,0.00012955,2]
[426427808,1782378632000,-500.0,0.00012955,2]
[426427810,1782378632000,-500.0,0.00012955,2]
[426427801,1782378632000,-236.7987138,0.00012955,2]
[426427802,1782378632000,-500.0,0.00012955,2]
[426427807,1782378632000,-500.0,0.00012955,2]
[426427803,1782378632000,-500.0,0.00012955,2]
[426427804,1782378632000,-500.0,0.00012955,2]
[426427805,1782378632000,-500.0,0.00012955,2]
[426427806,1782378632000,-500.0,0.00012955,2]
[426427824,1782378632000,-510.73232332,0.00012955,2]
[426427814,1782378632000,-500.0,0.00012955,2]
[426427826,1782378632000,-150.0,0.00012955,2]
[426427848,1782378632000,-151.0,0.00013161,2]
[426427822,1782378632000,-500.0,0.00012955,2]
[426427823,1782378632000,-500.0,0.00012955,2]
[426427856,1782378632000,-496.00016961,0.00013165,2]
[426427853,1782378632000,-150.0,0.00013162,2]
[426427851,1782378632000,-152.0,0.00013161,2]
[426427852,1782378632000,-151.0,0.00013161,2]
[426427845,1782378632000,-151.0,0.00013161,2]
[426427849,1782378632000,-152.0,0.00013161,2]
[426427847,1782378632000,-151.0,0.00013161,2]
[426427855,1782378632000,-271.56582339,0.00013165,2]
[426427846,1782378632000,-150.0,0.00013161,2]
[426427854,1782378632000,-99905.99327176,0.00013165,2]
[426427842,1782378632000,-151.0,0.00013161,2]
[426427837,1782378632000,-576.2630964,0.00013065,2]
[426427850,1782378632000,-152.0,0.00013161,2]
[426427839,1782378632000,-2527.91453472,0.00013065,2]
[426427830,1782378632000,-152.0,0.00012955,2]
[426427836,1782378632000,-500.0,0.00012955,2]
[426427833,1782378632000,-184.0,0.00012955,2]
[426427834,1782378632000,-152.0,0.00012955,2]
[426427840,1782378632000,-5921.00136176,0.00013065,2]
[426427820,1782378632000,-194.66398371,0.00012955,2]
[426427838,1782378632000,-3972.15574497,0.00013065,2]
[426427844,1782378632000,-151.0,0.00013161,2]
[426427843,1782378632000,-153.0,0.00013161,2]
[426427841,1782378632000,-158.95132203,0.00013161,2]
[426427835,1782378632000,-152.0,0.00012955,2]
[426427825,1782378632000,-150.0,0.00012955,2]
[426427887,1782378640000,-152.0,0.00013227,2]
[426427890,1782378640000,-152.0,0.00013227,2]
[426427896,1782378640000,-312.0,0.00013227,2]
[426427889,1782378640000,-318.0,0.00013227,2]
[426427891,1782378640000,-312.0,0.00013227,2]
[426427892,1782378640000,-311.0,0.00013227,2]
[426427893,1782378640000,-320.0,0.00013227,2]
[426427894,1782378640000,-152.0,0.00013227,2]
[426427897,1782378640000,-150.0,0.00013227,2]
[426427895,1782378640000,-317.0,0.00013227,2]
[426427906,1782378640000,-321.0,0.00013227,2]
[426427903,1782378640000,-311.0,0.00013227,2]
[426427907,1782378640000,-150.0,0.00013227,2]
[426427904,1782378640000,-313.0,0.00013227,2]
[426427912,1782378640000,-311.0,0.00013227,2]
[426427911,1782378640000,-321.0,0.00013227,2]
[426427909,1782378640000,-310.0,0.00013227,2]
[426427902,1782378640000,-153.0,0.00013227,2]
[426427910,1782378640000,-151.0,0.00013227,2]
[426427898,1782378640000,-318.0,0.00013227,2]
[426427908,1782378640000,-320.0,0.00013227,2]
[426427900,1782378640000,-316.0,0.00013227,2]
[426427888,1782378640000,-317.0,0.00013227,2]
[426427871,1782378640000,-312.0,0.00013191,2]
[426427882,1782378640000,-150.0,0.00013226,2]
[426427914,1782378640000,-152.0,0.00013227,2]
[426427861,1782378640000,-3114.62395894,0.00012757,2]
[426427862,1782378640000,-3875.82233732,0.00012757,2]
[426427863,1782378640000,-562.35893659,0.00012757,2]
[426427864,1782378640000,-1087.64002079,0.00012757,2]
[426427865,1782378640000,-9155.43524948,0.00012757,2]
[426427867,1782378640000,-1399326.44073524,0.00013165,2]
[426427868,1782378640000,-152.0,0.00013165,2]
[426427866,1782378640000,-31198.48949688,0.00012757,2]
[426427869,1782378640000,-150.0,0.00013165,2]
[426427886,1782378640000,-320.0,0.00013227,2]
[426427870,1782378640000,-150.0,0.00013177,2]
[426427883,1782378640000,-313.0,0.00013226,2]
[426427884,1782378640000,-316.0,0.00013227,2]
[426427873,1782378640000,-152.0,0.00013226,2]
[426427874,1782378640000,-319.0,0.00013226,2]
[426427872,1782378640000,-310.0,0.000132,2]
[426427876,1782378640000,-320.0,0.00013226,2]
[426427879,1782378640000,-314.0,0.00013226,2]
[426427877,1782378640000,-151.0,0.00013226,2]
[426427880,1782378640000,-309.0,0.00013226,2]
[426427875,1782378640000,-313.0,0.00013226,2]
[426427885,1782378640000,-318.0,0.00013227,2]
[426427916,1782378640000,-320.0,0.00013228,2]
[426428011,1782378640000,-151.0,0.00013539,2]
[426427932,1782378640000,-318.0,0.00013233,2]
[426427979,1782378640000,-321.0,0.00013444,2]
[426427973,1782378640000,-2500.0,0.00013399,2]
[426427977,1782378640000,-163.87454717,0.00013399,2]
[426427975,1782378640000,-189.75483852,0.00013399,2]
[426427986,1782378640000,-5921.00136173,0.00013473,2]
[426427981,1782378640000,-314.0,0.00013444,2]
[426427983,1782378640000,-3972.15574489,0.00013473,2]
[426427988,1782378640000,-150.0,0.00013488,2]
[426427989,1782378640000,-150.0,0.00013488,2]
[426427991,1782378640000,-150.0,0.00013488,2]
[426427971,1782378640000,-152.0,0.00013398,2]
[426427997,1782378640000,-150.0,0.00013488,2]
[426427930,1782378640000,-316.0,0.00013231,2]
[426427999,1782378640000,-150.0,0.00013488,2]
[426428000,1782378640000,-1500000.0,0.00013499,2]
[426428006,1782378640000,-314.0,0.00013539,2]
[426428013,1782378640000,-316.0,0.00013539,2]
[426428004,1782378640000,-411.11772491,0.000135,2]
[426428002,1782378640000,-176.7329,0.00013499,2]
[426428010,1782378640000,-313.0,0.00013539,2]
[426428008,1782378640000,-150.0,0.00013539,2]
[426428015,1782378640000,-315.0,0.00013539,2]
[426427995,1782378640000,-150.0,0.00013488,2]
[426427970,1782378640000,-152.0,0.00013398,2]
[426427993,1782378640000,-150.0,0.00013488,2]
[426427965,1782378640000,-316.0,0.00013398,2]
[426427968,1782378640000,-152.0,0.00013398,2]
[426427933,1782378640000,-151.0,0.00013234,2]
[426427920,1782378640000,-151.0,0.00013228,2]
[426427918,1782378640000,-310.0,0.00013228,2]
[426427922,1782378640000,-312.0,0.00013228,2]
[426427926,1782378640000,-313.0,0.00013229,2]
[426427928,1782378640000,-150.0,0.00013229,2]
[426427937,1782378640000,-314.0,0.00013242,2]
[426427939,1782378640000,-310.0,0.00013248,2]
[426427936,1782378640000,-313.0,0.00013242,2]
[426427942,1782378640000,-152.0,0.00013252,2]
[426427924,1782378640000,-309.0,0.00013228,2]
[426427945,1782378640000,-152.0,0.00013265,2]
[426427964,1782378640000,-153.0,0.00013331,2]